fUSD/lending_fUSD_20240116
["ID","MTS","AMOUNT","RATE_DAILY","PERIOD"]
[311733855,1705368638456,-500.0,0.00022177,2]
[311733857,1705368638467,-603.74,0.00022177,2]
[311733859,1705368638477,-783.94,0.00022177,2]
[311733862,1705368638486,-810.91,0.00022177,2]
[311733864,1705368638496,-738.89,0.00022177,2]
[311733866,1705368638504,-647.82,0.00022177,2]
[311733868,1705368638514,-739.1,0.00022177,2]
[311733870,1705368638523,-688.98,0.00022177,2]
[311733872,1705368638532,-500.0,0.00022177,2]
[311733874,1705368638541,-500.0,0.00022177,2]
[311733876,1705368638550,-763.56,0.00022177,2]
[311733878,1705368638559,-671.94,0.00022177,2]
[311733880,1705368638569,-1084.76,0.00022177,2]
[311733882,1705368638579,-5131.15,0.00022177,2]
[311733884,1705368638588,-500.0,0.00022177,2]
[311733886,1705368638597,-587.43,0.00022177,2]
[311733888,1705368638610,-1102.81,0.00022177,2]
[311733890,1705368638619,-500.0,0.00022177,2]
[311733892,1705368638628,-511.19,0.00022177,2]
[311733894,1705368638638,-806.43,0.00022177,2]
[311733896,1705368638649,-546.08,0.00022177,2]
[311733898,1705368638658,-652.66,0.00022177,2]
[311733901,1705368638668,-500.0,0.00022177,2]
[311733903,1705368638679,-500.0,0.00022177,2]
[311733905,1705368638690,-1432.73,0.00022177,2]
[311733907,1705368638700,-500.0,0.00022177,2]
[311733909,1705368638709,-500.0,0.00022177,2]
[311733911,1705368638719,-568.36,0.00022177,2]
[311733913,1705368638730,-779.95,0.00022177,2]
[311733915,1705368638739,-990.21,0.00022177,2]
[311733917,1705368638749,-500.0,0.00022177,2]
[311733919,1705368638759,-1259.95,0.00022177,2]
[311733921,1705368638769,-681.68,0.00022177,2]
[311733923,1705368638779,-500.0,0.00022177,2]
[311733925,1705368638789,-1410.12,0.00022177,2]
[311733927,1705368638799,-811.95,0.00022177,2]
[311733929,1705368638808,-500.0,0.00022177,2]
[311733931,1705368638818,-500.0,0.00022177,2]
[311733933,1705368638827,-687.76,0.00022177,2]
[311733935,1705368638837,-752.58,0.00022177,2]
[311733937,1705368638846,-576.19,0.00022177,2]
[311733939,1705368638856,-2379.54,0.00022177,2]
[311733941,1705368638865,-2768.33,0.00022177,2]
[311733943,1705368638876,-910.56,0.00022177,2]
[311733946,1705368638886,-809.47,0.00022177,2]
[311733948,1705368638897,-521.47,0.00022177,2]
[311733950,1705368638906,-731.21,0.00022177,2]
[311733952,1705368638915,-1008.15,0.00022177,2]
[311733954,1705368638924,-759.97,0.00022177,2]
[311733956,1705368638934,-500.0,0.00022177,2]
[311733957,1705368638944,-794.79,0.00022177,2]
[311733959,1705368638954,-500.0,0.00022177,2]
[311733961,1705368638963,-921.79,0.00022177,2]
[311733963,1705368638973,-1171.18,0.00022177,2]
[311733965,1705368638983,-1220.91,0.00022177,2]
[311733967,1705368638992,-1075.65,0.00022177,2]
[311733970,1705368639004,-500.0,0.00022177,2]
[311733972,1705368639014,-1857.49,0.00022177,2]
[311733974,1705368639023,-875.54,0.00022177,2]
[311733976,1705368639032,-2875.62,0.00022177,2]
[311733978,1705368639043,-2962.53,0.00022177,2]
[311733980,1705368639052,-983.38,0.00022177,2]
[311733982,1705368639061,-10831.65,0.00022177,2]
[311733984,1705368639071,-1169.31,0.00022177,2]
[311733986,1705368639080,-1058.32,0.00022177,2]
[311733988,1705368639090,-2019.83,0.00022177,2]
[311733990,1705368639099,-500.0,0.00022177,2]
[311733992,1705368639108,-691.89,0.00022177,2]
[311733994,1705368639117,-977.38,0.00022177,2]
[311733996,1705368639127,-549.80021694,0.00022177,2]
[311733998,1705368639136,-692.57,0.00022177,2]
[311734000,1705368639146,-710.9,0.00022177,2]
[311734002,1705368639156,-500.0,0.00022177,2]
[311734004,1705368639166,-500.0,0.00022177,2]
[311734006,1705368639176,-626.93,0.00022177,2]
[311734008,1705368639185,-500.0,0.00022177,2]
[311734010,1705368639195,-611.6,0.00022177,2]
[311734012,1705368639204,-500.0,0.00022177,2]
[311734014,1705368639214,-500.0,0.00022177,2]
[311734016,1705368639223,-697.53,0.00022177,2]
[311734018,1705368639232,-1091.32,0.00022177,2]
[311734020,1705368639242,-857.6,0.00022177,2]
[311734022,1705368639251,-808.07,0.00022177,2]
[311734024,1705368639261,-500.0,0.00022177,2]
[311734027,1705368639271,-1647.8,0.00022177,2]
[311734029,1705368639280,-500.0,0.00022177,2]
[311734032,1705368639303,-927.92,0.00022178,2]
[311734034,1705368639313,-1949.59,0.00022178,2]
[311734036,1705368639323,-789.09,0.00022178,2]
[311734038,1705368639333,-8139.52,0.00022178,2]
[311734040,1705368639342,-1152.16,0.00022178,2]
[311734042,1705368639352,-12252.48,0.00022178,2]
[311734045,1705368639362,-233.53928277,0.00022178,2]
[311734047,1705368639378,-4224.44071723,0.00022178,2]
[311734049,1705368639388,-987.47,0.00022178,2]
[311734051,1705368639399,-500.0,0.00022178,2]
[311734053,1705368639409,-1870.34,0.00022178,2]
[311734056,1705368639419,-2055.24,0.00022178,2]
[311734058,1705368639428,-2840.72,0.00022178,2]
[311734060,1705368639438,-703.25,0.00022178,2]
[311734062,1705368639448,-1324.14,0.00022178,2]
[311734064,1705368639458,-1826.27,0.00022178,2]
[311734066,1705368639468,-500.0,0.00022178,2]
[311734068,1705368639478,-567.21,0.00022178,2]
[311734070,1705368639488,-1691.96,0.00022178,2]
[311734072,1705368639498,-1621.17,0.00022178,2]
[311734074,1705368639508,-665.5,0.00022178,2]
[311734076,1705368639518,-1039.64,0.00022178,2]
[311734078,1705368639528,-1123.18,0.00022178,2]
[311734080,1705368639539,-3930.78,0.00022178,2]
[311734083,1705368639549,-826.66,0.00022178,2]
[311734085,1705368639559,-1206.54,0.00022178,2]
[311734087,1705368639570,-23719.02,0.00022178,2]
[311734089,1705368639580,-7618.3,0.00022178,2]
[311734091,1705368639590,-2861.05,0.00022178,2]
[311734093,1705368639601,-13585.76,0.00022178,2]
[311734095,1705368639610,-1985.86,0.00022178,2]
[311734098,1705368639620,-1788.3,0.00022178,2]
[311734100,1705368639630,-1329.52,0.00022178,2]
[311734104,1705368639640,-1031.54,0.00022178,2]
[311734106,1705368639651,-1346.16,0.00022178,2]
[311734108,1705368639661,-1155.93,0.00022178,2]
[311734110,1705368639671,-1169.38,0.00022178,2]
[311734112,1705368639682,-706.62,0.00022178,2]
[311734114,1705368639692,-1144.13,0.00022178,2]
[311734116,1705368639701,-1515.75,0.00022178,2]
[311734118,1705368639711,-1349.79,0.00022178,2]
[311734120,1705368639721,-1532.44,0.00022178,2]
[311734122,1705368639731,-1542.79,0.00022178,2]
[311734124,1705368639741,-2668.85,0.00022178,2]
[311734126,1705368639750,-634.23,0.00022178,2]
[311734129,1705368639761,-348.70494008,0.00022178,2]
[311734131,1705368639772,-720.96,0.00022179,2]
[311734133,1705368639782,-663.6,0.00022179,2]
[311734135,1705368639792,-1046.23,0.00022179,2]
[311734137,1705368639802,-634.22,0.00022179,2]
[311734139,1705368639812,-891.63,0.00022179,2]
[311734141,1705368639822,-500.0,0.00022179,2]
[311734143,1705368639832,-1017.85,0.00022179,2]
[311734145,1705368639843,-500.0,0.00022179,2]
[311734148,1705368639853,-829.37,0.00022179,2]
[311734150,1705368639863,-565.91,0.00022179,2]
[311734152,1705368639873,-500.0,0.00022179,2]
[311734154,1705368639882,-649.83,0.00022179,2]
[311734156,1705368639893,-523.25,0.00022179,2]
[311734158,1705368639905,-726.46,0.00022179,2]
[311734160,1705368639914,-664.91,0.00022179,2]
[311734162,1705368639924,-861.58,0.00022179,2]
[311734164,1705368639934,-627.68,0.00022179,2]
[311734167,1705368639944,-553.57,0.00022179,2]
[311734169,1705368639954,-569.11,0.00022179,2]
[311734171,1705368639964,-155.0,0.00022179,2]
[311734173,1705368639974,-655.14,0.00022179,2]
[311734175,1705368639984,-500.0,0.00022179,2]
[311734177,1705368639993,-500.0,0.00022179,2]
[311734179,1705368640003,-1223.26,0.00022179,2]
[311734181,1705368640013,-793.17,0.00022179,2]
[311734182,1705368640022,-752.54,0.00022179,2]
[311734183,1705368640032,-500.0,0.00022179,2]
[311734184,1705368640042,-500.0,0.00022179,2]
[311734185,1705368640052,-537.06,0.00022179,2]
[311734186,1705368640061,-604.43,0.00022179,2]
[311734187,1705368640071,-664.47,0.00022179,2]
[311734188,1705368640081,-611.31,0.00022179,2]
[311734189,1705368640091,-701.4,0.00022179,2]
[311734234,1705368640453,-656.11,0.00022179,2]
[311734236,1705368640462,-785.92,0.00022179,2]
[311734238,1705368640472,-500.0,0.00022179,2]
[311734240,1705368640480,-500.0,0.00022179,2]
[311734242,1705368640490,-661.83,0.00022179,2]
[311734244,1705368640499,-500.0,0.00022179,2]
[311734246,1705368640509,-569.27,0.00022179,2]
[311734248,1705368640518,-604.9,0.00022179,2]
[311734251,1705368640528,-500.0,0.00022179,2]
[311734253,1705368640538,-766.27,0.00022179,2]
[311734255,1705368640548,-763.9,0.00022179,2]
[311734257,1705368640557,-1642.49,0.00022179,2]
[311734259,1705368640567,-500.0,0.00022179,2]
[311734261,1705368640576,-594.26,0.00022179,2]
[311734263,1705368640586,-454.41952191,0.00022179,2]
[311734265,1705368640599,-45.58047809,0.00022179,2]
[311734267,1705368640608,-332.47505178,0.00022179,2]
[311734270,1705368640620,-1012.49494822,0.00022179,2]
[311734272,1705368640630,-1503.87,0.00022179,2]
[311734274,1705368640639,-500.0,0.00022179,2]
[311734276,1705368640652,-764.2,0.00022179,2]
[311734278,1705368640661,-4778.69,0.00022179,2]
[311734280,1705368640670,-623.44,0.00022179,2]
[311734282,1705368640680,-819.30509777,0.00022179,2]
[311734286,1705368640709,-401.85490223,0.00022179,2]
[311734288,1705368640719,-72.93270293,0.00022179,2]
[311734297,1705368640800,-710.96729707,0.00022179,2]
[311734299,1705368640810,-12.66960185,0.00022179,2]
[311734301,1705368640822,-550.33039815,0.00022179,2]
[311734304,1705368640832,-1547.59,0.00022179,2]
[311734306,1705368640841,-1294.66,0.00022179,2]
[311734308,1705368640851,-500.0,0.00022179,2]
[311734310,1705368640860,-1023.51,0.00022179,2]
[311734312,1705368640870,-706.51,0.00022179,2]
[311734314,1705368640880,-2138.82,0.00022179,2]
[311734316,1705368640890,-2858.60508839,0.00022179,2]
[311734322,1705368640936,-460.99118467,0.00022179,2]
[311734324,1705368640948,-1122.46372694,0.00022179,2]
[311734326,1705368640957,-662.86,0.00022179,2]
[311734328,1705368640967,-531.43,0.00022179,2]
[311734330,1705368640977,-903.97,0.00022179,2]
[311734332,1705368640986,-407.22751677,0.00022179,2]
[311734425,1705368641929,-1612.60638186,0.00022177,2]
[311734427,1705368641941,-55.03361814,0.00022177,2]
[311734429,1705368641951,-92.77248323,0.00022179,2]
[311734432,1705368641961,-3198.08,0.00022179,2]
[311734434,1705368641971,-861.61,0.00022179,2]
[311734436,1705368641980,-1005.08,0.00022179,2]
[311734438,1705368641989,-844.37,0.00022179,2]
[311734440,1705368642000,-623.15,0.00022179,2]
[311734442,1705368642009,-608.55,0.00022179,2]
[311734444,1705368642019,-630.84,0.00022179,2]
[311734445,1705368642028,-4491.12,0.00022179,2]
[311734448,1705368642038,-7389.13,0.00022179,2]
[311734450,1705368642048,-736.66,0.00022179,2]
[311734452,1705368642057,-821.23389863,0.00022179,2]
[311734454,1705368642068,-3980.25610137,0.00022179,2]
[311734456,1705368642078,-500.0,0.00022179,2]
[311734458,1705368642087,-500.0,0.00022179,2]
[311734460,1705368642097,-4106.89,0.00022179,2]
[311734462,1705368642106,-158.1589085,0.00022179,2]
[311734464,1705368642118,-341.8410915,0.00022179,2]
[311734466,1705368642128,-305.6789771,0.00022179,2]
[311734468,1705368642140,-1195.0605002,0.00022179,2]
[311734472,1705368642167,-522.61778652,0.00022179,2]
[311734474,1705368642179,-2719.65690231,0.00022179,2]
[311734497,1705368642391,-1396.50583387,0.00022179,2]
[311734500,1705368642403,-692.7,0.00022179,2]
[311734502,1705368642413,-719.25,0.00022179,2]
[311734504,1705368642422,-2890.11520143,0.00022179,2]
[311734506,1705368642433,-217.51479857,0.00022179,2]
[311734508,1705368642443,-246.01818256,0.00022179,2]
[311734510,1705368642454,-253.98181744,0.00022179,2]
[311734512,1705368642463,-596.88,0.00022179,2]
[311734514,1705368642473,-500.0,0.00022179,2]
[311734516,1705368642483,-500.0,0.00022179,2]
[311734518,1705368642492,-2965.58,0.00022179,2]
[311734520,1705368642501,-500.0,0.00022179,2]
[311734522,1705368642511,-1370.24,0.00022179,2]
[311734524,1705368642520,-3123.01,0.00022179,2]
[311734526,1705368642530,-507.05,0.00022179,2]
[311734529,1705368642539,-1164.13,0.00022179,2]
[311734531,1705368642549,-270.12,0.00022179,2]
[311734533,1705368642559,-1743.70479648,0.00022179,2]
[311734535,1705368642568,-94.44981861,0.0002218,2]
[311734663,1705368643842,-500.0,0.00022176,2]
[311734665,1705368643851,-1202.54018139,0.0002218,2]
[311734667,1705368643860,-685.86919953,0.0002218,2]
[311734669,1705368643872,-50.18080047,0.0002218,2]
[311734670,1705368643881,-302.55771762,0.0002218,2]
[311734678,1705368643961,-1114.44228238,0.0002218,2]
[311734680,1705368643970,-3795.67,0.0002218,2]
[311734682,1705368643979,-500.0,0.0002218,2]
[311734685,1705368643988,-1761.69,0.0002218,2]
[311734686,1705368643997,-678.1,0.0002218,2]
[311734689,1705368644007,-1180.42,0.0002218,2]
[311734691,1705368644017,-1520.03,0.0002218,2]
[311734693,1705368644026,-545.74,0.0002218,2]
[311734695,1705368644036,-1133.03,0.0002218,2]
[311734697,1705368644045,-125.43771762,0.0002218,2]
[311734712,1705368644176,-2716.11228238,0.0002218,2]
[311734714,1705368644186,-426.0605139,0.00022181,2]
[311734716,1705368644195,-163.88168135,0.00022181,2]
[311734718,1705368644205,-249.08654529,0.00022181,2]
[311734719,1705368644214,-500.0,0.00022182,2]
[311734722,1705368644223,-500.0,0.00022182,2]
[311734724,1705368644233,-500.0,0.00022182,2]
[311734726,1705368644242,-500.0,0.00022182,2]
[311734727,1705368644251,-682.25,0.00022182,2]
[311734729,1705368644261,-582.05762721,0.00022182,2]
[311734732,1705368644271,-500.0,0.00022182,2]
[311734734,1705368644280,-500.0,0.00022182,2]
[311734735,1705368644290,-500.0,0.00022182,2]
[311734737,1705368644299,-500.0,0.00022182,2]
[311734739,1705368644308,-500.0,0.00022182,2]
[311734742,1705368644317,-500.0,0.00022182,2]
[311734744,1705368644327,-500.0,0.00022182,2]
[311734746,1705368644337,-500.0,0.00022182,2]
[311734748,1705368644346,-510.75258792,0.00022182,2]
[311734750,1705368644355,-547.59,0.00022182,2]
[311734752,1705368644365,-500.0,0.00022182,2]
[311734754,1705368644374,-418.08676194,0.00022182,2]
[311734817,1705368644958,-160.57323806,0.00022182,2]
[311734819,1705368644968,-500.0,0.00022182,2]
[311734821,1705368644978,-500.0,0.00022182,2]
[311734823,1705368644987,-500.0,0.00022182,2]
[311734825,1705368644998,-596.62,0.00022182,2]
[311734827,1705368645007,-1059.72,0.00022182,2]
[311734829,1705368645016,-500.0,0.00022182,2]
[311734831,1705368645026,-500.0,0.00022182,2]
[311734833,1705368645035,-500.0,0.00022182,2]
[311734835,1705368645045,-500.0,0.00022182,2]
[311734837,1705368645053,-563.87,0.00022182,2]
[311734839,1705368645063,-500.0,0.00022182,2]
[311734841,1705368645072,-738.76,0.00022182,2]
[311734843,1705368645081,-500.0,0.00022182,2]
[311734845,1705368645091,-500.0,0.00022182,2]
[311734847,1705368645101,-509.15,0.00022182,2]
[311734849,1705368645110,-500.0,0.00022182,2]
[311734851,1705368645118,-500.0,0.00022182,2]
[311734853,1705368645127,-414.42417129,0.00022182,2]
[311734855,1705368645136,-581.04,0.00022182,2]
[311734857,1705368645146,-635.51,0.00022182,2]
[311734859,1705368645156,-500.0,0.00022182,2]
[311734861,1705368645165,-545.75,0.00022182,2]
[311734863,1705368645174,-500.0,0.00022182,2]
[311734865,1705368645183,-500.0,0.00022182,2]
[311734866,1705368645192,-548.12433536,0.00022182,2]
[311734867,1705368645201,-643.34,0.00022182,2]
[311734868,1705368645210,-500.0,0.00022182,2]
[311734869,1705368645220,-121.30019156,0.00022182,2]
[311734870,1705368645231,-378.69980844,0.00022182,2]
[311734871,1705368645240,-500.0,0.00022182,2]
[311734873,1705368645250,-514.15,0.00022182,2]
[311734874,1705368645259,-500.0,0.00022182,2]
[311734876,1705368645269,-500.0,0.00022182,2]
[311734878,1705368645278,-500.0,0.00022182,2]
[311734880,1705368645288,-500.0,0.00022182,2]
[311734882,1705368645297,-500.0,0.00022182,2]
[311734884,1705368645306,-500.0,0.00022182,2]
[311734886,1705368645316,-500.0,0.00022182,2]
[311734888,1705368645325,-500.0,0.00022182,2]
[311734890,1705368645334,-402.82647716,0.00022182,2]
[311734892,1705368645343,-500.0,0.00022182,2]
[311734894,1705368645352,-601.37,0.00022182,2]
[311734896,1705368645362,-500.0,0.00022182,2]
[311734898,1705368645371,-500.0,0.00022182,2]
[311734900,1705368645381,-1230.54,0.00022182,2]
[311734902,1705368645390,-500.0,0.00022182,2]
[311734905,1705368645401,-60.2137144,0.00022182,2]
[311734932,1705368645656,173.66262577,0.00022082,2]
[311735073,1705368647152,-189.31755215,0.00022178,2]
[311735074,1705368647164,-1622.30996782,0.00022178,2]
[311735083,1705368647238,-462.89844557,0.00022178,2]
[311735085,1705368647250,-1612.77158661,0.00022178,2]
[311735087,1705368647260,-439.7862856,0.00022182,2]
[311735089,1705368647269,-500.0,0.00022182,2]
[311735091,1705368647279,-509.03,0.00022182,2]
[311735093,1705368647289,-500.0,0.00022182,2]
[311735095,1705368647298,-500.0,0.00022182,2]
[311735097,1705368647307,-567.93,0.00022182,2]
[311735099,1705368647317,-500.0,0.00022182,2]
[311735101,1705368647327,-500.0,0.00022182,2]
[311735103,1705368647337,-558.87,0.00022182,2]
[311735105,1705368647347,-500.0,0.00022182,2]
[311735107,1705368647357,-500.0,0.00022182,2]
[311735109,1705368647368,-500.0,0.00022182,2]
[311735111,1705368647377,-500.0,0.00022182,2]
[311735113,1705368647387,-500.0,0.00022182,2]
[311735115,1705368647396,-375.15345237,0.00022182,2]
[311735118,1705368647410,-124.84654763,0.00022182,2]
[311735120,1705368647419,-500.0,0.00022182,2]
[311735122,1705368647428,-666.3,0.00022182,2]
[311735124,1705368647437,-607.92625228,0.00022182,2]
[311735126,1705368647447,-463.73437673,0.00022182,2]
[311735148,1705368650502,1217.08,0.000221,2]
[311735150,1705368676016,1249.2879,0.00022077,2]
[311735151,1705368682347,3189.53192439,0.00021292,2]
[311735153,1705368685690,887.08300478,0.00022081,2]
[311735154,1705368689452,214.76733679,0.000221,2]
[311735156,1705368703720,223.83738496,0.00022083,2]
[311735158,1705368709107,232.3655574,0.00022083,2]
[311735160,1705368724891,205.0,0.00021548,2]
[311735161,1705368727241,297.59775865,0.00022179,7]
[311735162,1705368729361,5020.03215745,0.0002107,7]
[311735163,1705368737192,355.6447,0.00022077,2]
[311735166,1705368756050,421.42713728,0.00022082,2]
[311735169,1705368760937,340.81,0.00019461,2]
[311735170,1705368761225,340.81,0.00021725,2]
[311735173,1705368804255,-150.0,0.00022175,2]
[311735174,1705368804276,-735.32,0.00022176,2]
[311735175,1705368804299,-717.75,0.00022176,2]
[311735176,1705368804320,-717.38,0.00022176,2]
[311735177,1705368804347,-723.19,0.00022176,2]
[311735178,1705368804367,-737.81,0.00022176,2]
[311735179,1705368804389,-500.0,0.00022176,2]
[311735180,1705368804412,-875.23,0.00022176,2]
[311735181,1705368804432,-500.0,0.00022176,2]
[311735182,1705368804452,-1218.35,0.00022176,2]
[311735183,1705368804473,-886.97,0.00022176,2]
[311735184,1705368804493,-1125.67,0.00022176,2]
[311735185,1705368804514,-1034.88,0.00022176,2]
[311735186,1705368804533,-1782.92,0.00022176,2]
[311735187,1705368804555,-2761.57,0.00022176,2]
[311735188,1705368804575,-2848.3,0.00022176,2]
[311735189,1705368804596,-7184.66,0.00022176,2]
[311735191,1705368813994,412.0,0.00021962,2]
[311735193,1705368819739,170.59,0.00021399,10]
[311735194,1705368821413,55555.0,0.00022084,2]
[311735195,1705368834123,-738.32,0.00022176,2]
[311735196,1705368834145,-7361.68,0.00022176,2]
[311735198,1705368843055,1338.2237,0.00022078,2]
[311735199,1705368843463,524.326,0.00022078,2]
[311735201,1705368864996,500.0,0.0002218,5]
[311735202,1705368875703,250.0,0.00021918,2]
[311735204,1705368894172,280.95142486,0.00022084,2]
[311735205,1705368895093,180.0,0.00025,15]
[311735209,1705368910543,182.43,0.00021357,2]
[311735210,1705368916419,161.26310329,0.00022084,2]
[311735213,1705368946160,500.0,0.00022177,5]
[311735215,1705368958079,526.13773618,0.00022177,7]
[311735218,1705368989640,156.72,0.00021536,2]
[311735219,1705368989846,156.72,0.00021817,2]
[311735220,1705368990130,156.72,0.00022097,2]
[311735221,1705368990699,155.89,0.00021362,2]
[311735222,1705368990912,155.89,0.00021629,2]
[311735223,1705368991120,155.89,0.00021896,2]
[311735225,1705369003361,624.45,0.00021344,2]
[311735226,1705369005003,232.3655574,0.00022084,2]
[311735230,1705369011087,15000.0,0.00026,27]
[311735232,1705369029362,187.3009499,0.00022084,2]
[311735234,1705369030341,158.39527015,0.00022076,2]
[311735235,1705369035328,158.39527014,0.00022078,2]
[311735236,1705369040361,158.39527014,0.00022079,2]
[311735237,1705369045339,158.39527014,0.00022081,2]
[311735239,1705369048912,500.0,0.00022179,5]
[311735240,1705369050331,158.39527014,0.00022082,2]
[311735242,1705369055323,158.39527014,0.00022084,2]
[311735243,1705369058422,200.0,0.00021344,2]
[311735244,1705369059569,55555.0,0.00022082,2]
[311735247,1705369069815,151.43257642,0.00021184,2]
[311735248,1705369072928,7500.0,0.0002208,2]
[311735252,1705369137528,603.22,0.00021361,2]
[311735256,1705369162671,500.0,0.00022177,5]
[311735257,1705369162710,150.0,0.00021343,2]
[311735259,1705369164948,617.28,0.00021343,2]
[311735260,1705369173358,180.30849213,0.00021182,2]
[311735264,1705369229501,7500.0,0.00022079,2]
[311735265,1705369242690,324.98,0.00019438,2]
[311735266,1705369242932,324.98,0.00021702,2]
[311735268,1705369258866,164.8,0.00021569,2]
[311735269,1705369258991,164.8,0.00022077,2]
[311735271,1705369279093,170.59,0.00021356,10]
[311735274,1705369313143,55555.0,0.00022079,2]
[311735278,1705369344357,250.0,0.00021918,2]
[311735282,1705369359013,7500.0,0.00022079,2]
[311735285,1705369366099,500.0,0.00022178,5]
[311735295,1705369382929,500.0,0.00022176,5]
[311735309,1705369405097,188.03,0.00021348,2]
[311735311,1705369411834,200.0,0.00021348,2]
[311735314,1705369444588,205.0,0.0002181,2]
[311735315,1705369457454,500.0,0.00022178,5]
[311735317,1705369464555,156.72,0.00021508,2]
[311735319,1705369490057,20262.36,0.00021353,2]
[311735320,1705369490792,7500.0,0.00022078,2]
[311735322,1705369497240,171.0,0.00021353,2]
[311735327,1705369552548,840.0,0.00021334,2]
[311735330,1705369574616,55555.0,0.00022077,2]
[311735333,1705369594410,589.41,0.00021347,2]
[311735334,1705369598307,500.0,0.00022177,5]
[311735335,1705369615204,500.0,0.00022176,5]
[311735337,1705369628708,250.0,0.00022077,2]
[311735338,1705369634990,7500.0,0.00022077,2]
[311735342,1705369652565,31109.78,0.00021344,2]
[311735346,1705369700377,589.34767721,0.00022079,2]
[311735349,1705369716179,150.80885926,0.00021179,2]
[311735351,1705369729886,309.82,0.00019405,2]
[311735352,1705369730139,309.82,0.00021669,2]
[311735353,1705369735643,158.2,0.00021536,2]
[311735355,1705369743304,170.59,0.00021331,10]
[311735356,1705369749848,-150.0,0.00022137,2]
[311735357,1705369749870,-155.89,0.00022163,2]
[311735358,1705369749889,-150.0,0.00022175,2]
[311735359,1705369749908,-300.0,0.00022175,2]
[311735360,1705369749928,-727.87,0.00022176,2]
[311735361,1705369749948,-722.95,0.00022176,2]
[311735362,1705369749966,-936.66,0.00022176,2]
[311735363,1705369749986,-689.99,0.00022176,2]
[311735364,1705369750004,-1579.14,0.00022176,2]
[311735365,1705369750023,-586.11,0.00022176,2]
[311735366,1705369750043,-500.0,0.00022176,2]
[311735367,1705369750062,-774.4,0.00022176,2]
[311735368,1705369750080,-637.34,0.00022176,2]
[311735369,1705369750099,-692.91,0.00022176,2]
[311735370,1705369750118,-1004.22,0.00022176,2]
[311735371,1705369750138,-683.76,0.00022176,2]
[311735372,1705369750161,-900.71,0.00022176,2]
[311735373,1705369750179,-500.0,0.00022176,2]
[311735374,1705369750198,-976.88,0.00022176,2]
[311735375,1705369750218,-500.0,0.00022176,2]
[311735376,1705369750238,-572.47,0.00022176,2]
[311735377,1705369750257,-796.52,0.00022176,2]
[311735378,1705369750276,-624.49,0.00022176,2]
[311735379,1705369750295,-500.0,0.00022176,2]
[311735380,1705369750315,-502.89,0.00022176,2]
[311735381,1705369750333,-697.95,0.00022176,2]
[311735382,1705369750365,-638.79,0.00022176,2]
[311735383,1705369750399,-871.16,0.00022176,2]
[311735384,1705369750420,-634.3,0.00022176,2]
[311735385,1705369750440,-532.68,0.00022176,2]
[311735386,1705369750462,-546.82,0.00022176,2]
[311735387,1705369750485,-500.0,0.00022176,2]
[311735388,1705369750506,-629.96,0.00022176,2]
[311735389,1705369750527,-500.0,0.00022176,2]
[311735390,1705369750547,-500.0,0.00022176,2]